fUST/lending_fUST_20250208
["ID","MTS","AMOUNT","RATE_DAILY","PERIOD"]
[352251289,1739017842008,-500.0,0.00011232,2]
[352251290,1739017842017,-500.0,0.00011232,2]
[352251291,1739017842032,-500.0,0.00011232,2]
[352251292,1739017842051,-500.0,0.00011232,2]
[352251293,1739017842060,-500.0,0.00011232,2]
[352251294,1739017842071,-500.0,0.00011232,2]
[352251295,1739017842088,-500.0,0.00011232,2]
[352251296,1739017842099,-545.48,0.00011232,2]
[352251297,1739017842109,-516.85427274,0.00011232,2]
[352251298,1739017842120,-500.0,0.00011232,2]
[352251299,1739017842130,-500.0,0.00011232,2]
[352251300,1739017842139,-622.9,0.00011232,2]
[352251301,1739017842148,-500.0,0.00011232,2]
[352251302,1739017842158,-500.0,0.00011232,2]
[352251303,1739017842167,-500.0,0.00011232,2]
[352251304,1739017842178,-500.0,0.00011232,2]
[352251305,1739017842188,-1172.82,0.00011232,2]
[352251306,1739017842196,-500.0,0.00011232,2]
[352251307,1739017842207,-1198.4,0.00011232,2]
[352251308,1739017842217,-500.0,0.00011232,2]
[352251309,1739017842227,-500.0,0.00011232,2]
[352251310,1739017842236,-719.72,0.00011232,2]
[352251311,1739017842245,-538.92093382,0.00011232,2]
[352251312,1739017842255,-561.12828322,0.00011232,2]
[352251313,1739017842264,-500.0,0.00011232,2]
[352251314,1739017842274,-1164.69,0.00011232,2]
[352251315,1739017842282,-500.0,0.00011232,2]
[352251316,1739017842291,-506.9,0.00011232,2]
[352251317,1739017842300,-500.0,0.00011232,2]
[352251318,1739017842310,-596.45,0.00011232,2]
[352251319,1739017842319,-1256.34,0.00011232,2]
[352251320,1739017842328,-500.0,0.00011232,2]
[352251321,1739017842337,-500.0,0.00011232,2]
[352251322,1739017842346,-500.0,0.00011232,2]
[352251323,1739017842355,-618.62,0.00011232,2]
[352251324,1739017842365,-890.11,0.00011232,2]
[352251325,1739017842374,-500.0,0.00011232,2]
[352251326,1739017842384,-245.63,0.00011232,2]
[352251327,1739017842393,-801.48,0.00011232,2]
[352251328,1739017842403,-500.0,0.00011232,2]
[352251329,1739017842413,-500.0,0.00011232,2]
[352251330,1739017842422,-500.0,0.00011232,2]
[352251331,1739017842432,-500.0,0.00011232,2]
[352251333,1739017842441,-500.0,0.00011232,2]
[352251335,1739017842451,-500.0,0.00011232,2]
[352251336,1739017842460,-500.0,0.00011232,2]
[352251337,1739017842469,-1129.76,0.00011232,2]
[352251338,1739017842478,-500.0,0.00011232,2]
[352251339,1739017842487,-500.0,0.00011232,2]
[352251340,1739017842496,-500.0,0.00011232,2]
[352251341,1739017842506,-500.0,0.00011232,2]
[352251342,1739017842515,-1343.04,0.00011232,2]
[352251343,1739017842526,-500.0,0.00011232,2]
[352251344,1739017842535,-500.0,0.00011232,2]
[352251345,1739017842545,-1062.89,0.00011232,2]
[352251346,1739017842554,-500.0,0.00011232,2]
[352251347,1739017842563,-500.0,0.00011232,2]
[352251348,1739017842573,-500.0,0.00011232,2]
[352251349,1739017842582,-500.0,0.00011232,2]
[352251350,1739017842592,-500.0,0.00011232,2]
[352251351,1739017842601,-736.16,0.00011232,2]
[352251352,1739017842611,-500.0,0.00011232,2]
[352251353,1739017842619,-742.48,0.00011232,2]
[352251354,1739017842629,-500.0,0.00011232,2]
[352251355,1739017842638,-1195.43,0.00011232,2]
[352251356,1739017842648,-618.50508399,0.00011232,2]
[352251357,1739017842657,-500.0,0.00011232,2]
[352251358,1739017842667,-752.79,0.00011232,2]
[352251359,1739017842676,-1664.85,0.00011232,2]
[352251360,1739017842686,-500.0,0.00011232,2]
[352251361,1739017842695,-535.84,0.00011232,2]
[352251362,1739017842705,-500.0,0.00011232,2]
[352251363,1739017842714,-742.28,0.00011232,2]
[352251364,1739017842724,-500.0,0.00011232,2]
[352251365,1739017842734,-500.0,0.00011232,2]
[352251366,1739017842743,-500.0,0.00011232,2]
[352251367,1739017842752,-1477.8,0.00011232,2]
[352251368,1739017842762,-789.89,0.00011232,2]
[352251369,1739017842772,-500.0,0.00011232,2]
[352251370,1739017842782,-3040.25,0.00011232,2]
[352251371,1739017842792,-500.0,0.00011232,2]
[352251372,1739017842802,-3881.11,0.00011232,2]
[352251373,1739017842811,-500.0,0.00011232,2]
[352251374,1739017842820,-1742.68,0.00011232,2]
[352251375,1739017842829,-500.0,0.00011232,2]
[352251376,1739017842839,-500.0,0.00011232,2]
[352251377,1739017842848,-500.0,0.00011232,2]
[352251378,1739017842858,-500.0,0.00011232,2]
[352251379,1739017842868,-500.0,0.00011232,2]
[352251380,1739017842877,-17493.96,0.00011232,2]
[352251381,1739017842887,-500.0,0.00011232,2]
[352251382,1739017842896,-1286.62,0.00011232,2]
[352251383,1739017842906,-1024.74,0.00011232,2]
[352251384,1739017842916,-500.0,0.00011232,2]
[352251385,1739017842925,-500.0,0.00011232,2]
[352251386,1739017842935,-429.87078119,0.00011232,2]
[352251387,1739017842945,-500.0,0.00011232,2]
[352251388,1739017842955,-500.0,0.00011232,2]
[352251389,1739017842964,-1951.84,0.00011232,2]
[352251390,1739017842973,-5832.43,0.00011232,2]
[352251391,1739017842983,-503.95681208,0.00011232,2]
[352251392,1739017842993,-500.0,0.00011232,2]
[352251393,1739017843005,-500.0,0.00011232,2]
[352251394,1739017843016,-1544.06,0.00011232,2]
[352251395,1739017843026,-48916.37,0.00011232,2]
[352251396,1739017843036,-612.75,0.00011232,2]
[352251397,1739017843047,-4373.29,0.00011232,2]
[352251398,1739017843057,-559.35,0.00011232,2]
[352251399,1739017843066,-500.0,0.00011232,2]
[352251400,1739017843075,-2116.4,0.00011232,2]
[352251401,1739017843086,-500.0,0.00011232,2]
[352251402,1739017843096,-500.0,0.00011232,2]
[352251403,1739017843106,-2222.78,0.00011232,2]
[352251404,1739017843116,-664.27,0.00011232,2]
[352251405,1739017843126,-1238.14,0.00011232,2]
[352251407,1739017843135,-1538.17,0.00011232,2]
[352251408,1739017843145,-500.0,0.00011232,2]
[352251409,1739017843154,-500.0,0.00011232,2]
[352251410,1739017843163,-500.0,0.00011232,2]
[352251411,1739017843172,-500.0,0.00011232,2]
[352251412,1739017843181,-500.0,0.00011232,2]
[352251413,1739017843191,-500.0,0.00011232,2]
[352251416,1739017843200,-2142.8,0.00011232,2]
[352251418,1739017843209,-500.0,0.00011232,2]
[352251419,1739017843218,-1482.54,0.00011232,2]
[352251420,1739017843228,-500.0,0.00011232,2]
[352251421,1739017843237,-681.13,0.00011232,2]
[352251422,1739017843246,-564.79,0.00011232,2]
[352251423,1739017843255,-856.38,0.00011232,2]
[352251424,1739017843264,-2004.33,0.00011232,2]
[352251425,1739017843275,-500.0,0.00011232,2]
[352251426,1739017843283,-500.0,0.00011232,2]
[352251427,1739017843293,-500.0,0.00011232,2]
[352251428,1739017843302,-500.0,0.00011232,2]
[352251429,1739017843311,-500.0,0.00011232,2]
[352251430,1739017843320,-500.0,0.00011232,2]
[352251431,1739017843329,-9384.36,0.00011232,2]
[352251432,1739017843338,-575.61,0.00011232,2]
[352251433,1739017843347,-500.0,0.00011232,2]
[352251434,1739017843357,-500.0,0.00011232,2]
[352251435,1739017843366,-500.0,0.00011232,2]
[352251436,1739017843375,-500.0,0.00011232,2]
[352251437,1739017843385,-500.0,0.00011232,2]
[352251438,1739017843394,-3582.6,0.00011232,2]
[352251439,1739017843403,-500.0,0.00011232,2]
[352251440,1739017843413,-500.0,0.00011232,2]
[352251441,1739017843422,-500.0,0.00011232,2]
[352251442,1739017843432,-3998.5,0.00011232,2]
[352251443,1739017843441,-896.88,0.00011232,2]
[352251444,1739017843450,-1674.8,0.00011232,2]
[352251445,1739017843460,-4034.27,0.00011232,2]
[352251446,1739017843469,-500.0,0.00011232,2]
[352251447,1739017843478,-500.0,0.00011232,2]
[352251448,1739017843488,-4452.9,0.00011232,2]
[352251449,1739017843497,-15594.14,0.00011232,2]
[352251450,1739017843508,-820.56,0.00011232,2]
[352251451,1739017843517,-500.0,0.00011232,2]
[352251452,1739017843528,-1320.74,0.00011232,2]
[352251453,1739017843538,-1676.27,0.00011232,2]
[352251454,1739017843547,-500.0,0.00011232,2]
[352251455,1739017843556,-500.0,0.00011232,2]
[352251456,1739017843566,-500.0,0.00011232,2]
[352251457,1739017843576,-1536.9,0.00011232,2]
[352251458,1739017843585,-1100.89,0.00011232,2]
[352251459,1739017843594,-1163.06,0.00011232,2]
[352251460,1739017843604,-500.0,0.00011232,2]
[352251461,1739017843613,-651.17,0.00011232,2]
[352251462,1739017843623,-222.94555897,0.00011232,2]
[352251463,1739017843632,-636.37,0.00011232,2]
[352251464,1739017843641,-500.0,0.00011232,2]
[352251465,1739017843650,-500.0,0.00011232,2]
[352251466,1739017843660,-500.0,0.00011232,2]
[352251467,1739017843670,-500.0,0.00011232,2]
[352251468,1739017843680,-500.0,0.00011232,2]
[352251469,1739017843689,-1113.41,0.00011232,2]
[352251470,1739017843700,-621.70952141,0.00011291,2]
[352251471,1739017843710,-500.0,0.00011296,2]
[352251472,1739017843719,-256.56217126,0.00011296,2]
[352251473,1739017843729,-151.0,0.000113,2]
[352251474,1739017843738,-500.0,0.00011312,2]
[352251475,1739017843748,-500.0,0.00011312,2]
[352251476,1739017843757,-151.0,0.00011369,2]
[352251477,1739017843767,-151.0,0.00011369,2]
[352251478,1739017843778,-299.864187,0.00011369,2]
[352251479,1739017843787,-299.864187,0.00011369,2]
[352251480,1739017843797,-151.0,0.00011369,2]
[352251481,1739017843806,-271.909526,0.00011369,2]
[352251482,1739017843816,-241.725794,0.00011369,2]
[352251483,1739017843826,-271.909526,0.00011369,2]
[352251484,1739017843836,-500.0,0.00011369,2]
[352251485,1739017843845,-500.0,0.00011369,2]
[352251486,1739017843855,-500.0,0.00011369,2]
[352251487,1739017843864,-500.0,0.00011369,2]
[352251488,1739017843874,-500.0,0.00011369,2]
[352251489,1739017843884,-500.0,0.00011369,2]
[352251490,1739017843893,-500.0,0.00011369,2]
[352251491,1739017843903,-500.0,0.00011369,2]
[352251492,1739017843912,-500.0,0.00011369,2]
[352251493,1739017843922,-545.48,0.00011369,2]
[352251494,1739017843931,-500.0,0.00011369,2]
[352251495,1739017843941,-500.0,0.00011369,2]
[352251496,1739017843950,-622.9,0.00011369,2]
[352251497,1739017843960,-500.0,0.00011369,2]
[352251498,1739017843969,-500.0,0.00011369,2]
[352251499,1739017843979,-500.0,0.00011369,2]
[352251500,1739017843988,-500.0,0.00011369,2]
[352251501,1739017843998,-1172.82,0.00011369,2]
[352251502,1739017844012,-500.0,0.00011369,2]
[352251503,1739017844021,-1198.4,0.00011369,2]
[352251504,1739017844030,-500.0,0.00011369,2]
[352251505,1739017844039,-500.0,0.00011369,2]
[352251506,1739017844050,-719.72,0.00011369,2]
[352251507,1739017844060,-500.0,0.00011369,2]
[352251508,1739017844069,-1164.69,0.00011369,2]
[352251509,1739017844080,-500.0,0.00011369,2]
[352251510,1739017844090,-506.9,0.00011369,2]
[352251511,1739017844100,-500.0,0.00011369,2]
[352251512,1739017844109,-596.45,0.00011369,2]
[352251513,1739017844119,-1256.34,0.00011369,2]
[352251514,1739017844128,-500.0,0.00011369,2]
[352251515,1739017844138,-500.0,0.00011369,2]
[352251516,1739017844147,-500.0,0.00011369,2]
[352251517,1739017844156,-618.62,0.00011369,2]
[352251518,1739017844165,-890.11,0.00011369,2]
[352251519,1739017844175,-500.0,0.00011369,2]
[352251520,1739017844185,-801.48,0.00011369,2]
[352251521,1739017844195,-500.0,0.00011369,2]
[352251522,1739017844204,-500.0,0.00011369,2]
[352251523,1739017844213,-500.0,0.00011369,2]
[352251524,1739017844223,-500.0,0.00011369,2]
[352251525,1739017844232,-500.0,0.00011369,2]
[352251526,1739017844242,-500.0,0.00011369,2]
[352251527,1739017844252,-500.0,0.00011369,2]
[352251528,1739017844261,-1129.76,0.00011369,2]
[352251529,1739017844271,-500.0,0.00011369,2]
[352251530,1739017844279,-500.0,0.00011369,2]
[352251531,1739017844289,-500.0,0.00011369,2]
[352251532,1739017844300,-500.0,0.00011369,2]
[352251533,1739017844310,-1343.04,0.00011369,2]
[352251534,1739017844319,-500.0,0.00011369,2]
[352251535,1739017844328,-500.0,0.00011369,2]
[352251536,1739017844338,-1062.89,0.00011369,2]
[352251537,1739017844347,-513.93161765,0.00011369,2]
[352251538,1739017844356,-500.0,0.00011369,2]
[352251539,1739017844366,-500.0,0.00011369,2]
[352251540,1739017844375,-500.0,0.00011369,2]
[352251541,1739017844385,-185.95499664,0.00011369,2]
[352251542,1739017844394,-736.16,0.00011369,2]
[352251543,1739017844403,-742.48,0.00011369,2]
[352251544,1739017844412,-500.0,0.00011369,2]
[352251545,1739017844422,-1195.43,0.00011369,2]
[352251546,1739017844431,-500.0,0.00011369,2]
[352251547,1739017844441,-752.79,0.00011369,2]
[352251548,1739017844451,-1664.85,0.00011369,2]
[352251549,1739017844461,-500.0,0.00011369,2]
[352251550,1739017844470,-535.84,0.00011369,2]
[352251551,1739017844480,-500.0,0.00011369,2]
[352251552,1739017844489,-742.28,0.00011369,2]
[352251553,1739017844499,-500.0,0.00011369,2]
[352251554,1739017844508,-500.0,0.00011369,2]
[352251555,1739017844518,-500.0,0.00011369,2]
[352251556,1739017844528,-1477.8,0.00011369,2]
[352251557,1739017844538,-789.89,0.00011369,2]
[352251558,1739017844548,-500.0,0.00011369,2]
[352251559,1739017844557,-3040.25,0.00011369,2]
[352251560,1739017844566,-500.0,0.00011369,2]
[352251561,1739017844576,-3881.11,0.00011369,2]
[352251562,1739017844586,-500.0,0.00011369,2]
[352251563,1739017844596,-1742.68,0.00011369,2]
[352251564,1739017844605,-500.0,0.00011369,2]
[352251565,1739017844615,-500.0,0.00011369,2]
[352251566,1739017844624,-500.0,0.00011369,2]
[352251567,1739017844634,-500.0,0.00011369,2]
[352251568,1739017844645,-500.0,0.00011369,2]
[352251569,1739017844654,-17493.96,0.00011369,2]
[352251570,1739017844664,-500.0,0.00011369,2]
[352251571,1739017844673,-1286.62,0.00011369,2]
[352251572,1739017844682,-1024.74,0.00011369,2]
[352251573,1739017844692,-500.0,0.00011369,2]
[352251574,1739017844701,-500.0,0.00011369,2]
[352251575,1739017844711,-500.0,0.00011369,2]
[352251576,1739017844720,-1951.84,0.00011369,2]
[352251577,1739017844729,-5832.43,0.00011369,2]
[352251578,1739017844739,-500.0,0.00011369,2]
[352251579,1739017844748,-500.0,0.00011369,2]
[352251580,1739017844758,-1544.06,0.00011369,2]
[352251581,1739017844767,-48916.37,0.00011369,2]
[352251582,1739017844777,-612.75,0.00011369,2]
[352251583,1739017844786,-4373.29,0.00011369,2]
[352251584,1739017844795,-559.35,0.00011369,2]
[352251585,1739017844805,-500.0,0.00011369,2]
[352251586,1739017844814,-2116.4,0.00011369,2]
[352251587,1739017844824,-500.0,0.00011369,2]
[352251588,1739017844833,-500.0,0.00011369,2]
[352251589,1739017844842,-2222.78,0.00011369,2]
[352251590,1739017844852,-664.27,0.00011369,2]
[352251591,1739017844861,-1238.14,0.00011369,2]
[352251592,1739017844870,-1538.17,0.00011369,2]
[352251593,1739017844879,-500.0,0.00011369,2]
[352251594,1739017844890,-500.0,0.00011369,2]
[352251595,1739017844899,-500.0,0.00011369,2]
[352251596,1739017844908,-500.0,0.00011369,2]
[352251597,1739017844918,-500.0,0.00011369,2]
[352251598,1739017844928,-500.0,0.00011369,2]
[352251599,1739017844937,-2142.8,0.00011369,2]
[352251600,1739017844947,-500.0,0.00011369,2]
[352251601,1739017844956,-1482.54,0.00011369,2]
[352251602,1739017844965,-500.0,0.00011369,2]
[352251603,1739017844975,-681.13,0.00011369,2]
[352251604,1739017844984,-564.79,0.00011369,2]
[352251605,1739017845109,-856.38,0.00011369,2]
[352251606,1739017845135,-2004.33,0.00011369,2]
[352251607,1739017845145,-500.0,0.00011369,2]
[352251608,1739017845154,-500.0,0.00011369,2]
[352251609,1739017845164,-500.0,0.00011369,2]
[352251610,1739017845174,-500.0,0.00011369,2]
[352251611,1739017845184,-500.0,0.00011369,2]
[352251612,1739017845194,-500.0,0.00011369,2]
[352251613,1739017845203,-9384.36,0.00011369,2]
[352251614,1739017845212,-500.0,0.00011369,2]
[352251615,1739017845221,-500.0,0.00011369,2]
[352251616,1739017845231,-500.0,0.00011369,2]
[352251617,1739017845240,-500.0,0.00011369,2]
[352251618,1739017845250,-500.0,0.00011369,2]
[352251619,1739017845259,-3582.6,0.00011369,2]
[352251620,1739017845269,-500.0,0.00011369,2]
[352251621,1739017845282,-500.0,0.00011369,2]
[352251622,1739017845291,-500.0,0.00011369,2]
[352251623,1739017845300,-3998.5,0.00011369,2]
[352251624,1739017845310,-896.88,0.00011369,2]
[352251625,1739017845320,-1674.8,0.00011369,2]
[352251626,1739017845330,-4034.27,0.00011369,2]
[352251627,1739017845339,-500.0,0.00011369,2]
[352251629,1739017845349,-500.0,0.00011369,2]
[352251630,1739017845360,-4452.9,0.00011369,2]
[352251631,1739017845369,-15594.14,0.00011369,2]
[352251632,1739017845379,-820.56,0.00011369,2]
[352251633,1739017845388,-1320.74,0.00011369,2]
[352251634,1739017845397,-1676.27,0.00011369,2]
[352251635,1739017845407,-500.0,0.00011369,2]
[352251636,1739017845416,-500.0,0.00011369,2]
[352251637,1739017845426,-500.0,0.00011369,2]
[352251638,1739017845435,-1536.9,0.00011369,2]
[352251639,1739017845444,-1100.89,0.00011369,2]
[352251640,1739017845454,-1163.06,0.00011369,2]
[352251642,1739017845463,-500.0,0.00011369,2]
[352251643,1739017845473,-651.17,0.00011369,2]
[352251644,1739017845482,-636.37,0.00011369,2]
[352251645,1739017845491,-500.0,0.00011369,2]
[352251646,1739017845501,-500.0,0.00011369,2]
[352251647,1739017845510,-500.0,0.00011369,2]
[352251648,1739017845519,-500.0,0.00011369,2]
[352251649,1739017845531,-500.0,0.00011369,2]
[352251650,1739017845541,-1113.41,0.00011369,2]
[352251651,1739017845550,-500.0,0.0001138,2]
[352251652,1739017845560,-500.0,0.00011381,2]
[352251653,1739017845570,-500.0,0.00011381,2]
[352251654,1739017845579,-585.45216601,0.00011381,2]
[352251655,1739017845589,-500.0,0.00011381,2]
[352251656,1739017845598,-354.6875562,0.000114,2]
[352251657,1739017845608,-151.0,0.000114,2]
[352251658,1739017845618,-151.0,0.000114,2]
[352251660,1739017845626,-354.7727591,0.000114,2]
[352251662,1739017845636,-354.7727591,0.000114,2]
[352251663,1739017845645,-354.7727591,0.000114,2]
[352251664,1739017845654,-354.7727591,0.000114,2]
[352251665,1739017845663,-151.0,0.000114,2]
[352251666,1739017845673,-151.0,0.000114,2]
[352251668,1739017845682,-354.7727591,0.000114,2]
[352251670,1739017845691,-354.7727591,0.000114,2]
[352251672,1739017845700,-647.9917971,0.000114,2]
[352251674,1739017845710,-354.7727591,0.000114,2]
[352251676,1739017845719,-354.7727591,0.000114,2]
[352251677,1739017845728,-354.7727591,0.000114,2]
[352251678,1739017845737,-358.907697,0.000114,2]
[352251679,1739017845747,-501.09183101,0.00011413,2]
[352251680,1739017845756,-502.63900238,0.00011413,2]
[352251681,1739017845765,-500.0,0.00011418,2]
[352251682,1739017845776,-500.0,0.00011429,2]
[352251683,1739017845784,-13265.39216455,0.00011465,2]
[352251685,1739017845794,-151.0,0.000115,2]
[352251686,1739017845803,-151.0,0.000115,2]
[352251687,1739017845812,-644.7736501,0.000115,2]
[352251688,1739017845821,-151.0,0.00011506,2]
[352251689,1739017845831,-151.0,0.00011506,2]
[352251690,1739017845839,-299.864187,0.00011506,2]
[352251691,1739017845849,-299.864187,0.00011506,2]
[352251692,1739017845858,-151.0,0.00011506,2]
[352251693,1739017845867,-271.909526,0.00011506,2]
[352251694,1739017845876,-241.725794,0.00011506,2]
[352251695,1739017845885,-271.909526,0.00011506,2]
[352251696,1739017845894,-500.0,0.00011506,2]
[352251697,1739017845903,-500.0,0.00011506,2]
[352251698,1739017845912,-500.0,0.00011506,2]
[352251699,1739017845922,-334.99089184,0.00011506,2]
[352251700,1739017845931,-508.00484531,0.00011506,2]
[352251701,1739017845940,-500.0,0.00011506,2]
[352251702,1739017845950,-500.0,0.00011506,2]
[352251703,1739017845959,-500.0,0.00011506,2]
[352251704,1739017845968,-500.0,0.00011506,2]
[352251705,1739017845977,-545.48,0.00011506,2]
[352251706,1739017845987,-500.0,0.00011506,2]
[352251707,1739017845996,-500.0,0.00011506,2]
[352251708,1739017846006,-622.9,0.00011506,2]
[352251709,1739017846016,-500.0,0.00011506,2]
[352251710,1739017846027,-500.0,0.00011506,2]
[352251711,1739017846036,-500.0,0.00011506,2]
[352251712,1739017846045,-500.0,0.00011506,2]
[352251713,1739017846055,-1172.82,0.00011506,2]
[352251714,1739017846064,-361.1,0.00011506,2]
[352251715,1739017846073,-1198.4,0.00011506,2]
[352251716,1739017846083,-500.0,0.00011506,2]
[352251717,1739017846093,-500.0,0.00011506,2]
[352251718,1739017846102,-719.72,0.00011506,2]
[352251719,1739017846111,-500.0,0.00011506,2]
[352251720,1739017846120,-1164.69,0.00011506,2]
[352251721,1739017846130,-500.0,0.00011506,2]
[352251722,1739017846139,-506.9,0.00011506,2]
[352251723,1739017846148,-500.0,0.00011506,2]
[352251724,1739017846158,-596.45,0.00011506,2]
[352251725,1739017846167,-1256.34,0.00011506,2]
[352251726,1739017846177,-500.0,0.00011506,2]
[352251727,1739017846187,-500.0,0.00011506,2]
[352251728,1739017846197,-500.0,0.00011506,2]
[352251729,1739017846207,-618.62,0.00011506,2]
[352251730,1739017846216,-401.871541,0.00011506,2]
[352251731,1739017846225,-401.871541,0.00011506,2]
[352251732,1739017846234,-303.566534,0.00011506,2]
[352251733,1739017846244,-890.11,0.00011506,2]
[352251734,1739017846254,-500.0,0.00011506,2]
[352251735,1739017846264,-801.48,0.00011506,2]
[352251736,1739017846274,-500.0,0.00011506,2]
[352251737,1739017846283,-500.0,0.00011506,2]
[352251738,1739017846292,-500.0,0.00011506,2]
[352251739,1739017846301,-500.0,0.00011506,2]
[352251740,1739017846311,-500.0,0.00011506,2]
[352251741,1739017846321,-500.0,0.00011506,2]
[352251742,1739017846332,-500.0,0.00011506,2]
[352251743,1739017846342,-1129.76,0.00011506,2]
[352251744,1739017846353,-500.0,0.00011506,2]
[352251745,1739017846363,-500.0,0.00011506,2]
[352251746,1739017846372,-500.0,0.00011506,2]
[352251747,1739017846381,-738.404014,0.00011506,2]
[352251748,1739017846390,-500.0,0.00011506,2]
[352251749,1739017846399,-738.404014,0.00011506,2]
[352251750,1739017846408,-151.0,0.00011506,2]
[352251751,1739017846419,-1343.04,0.00011506,2]
[352251752,1739017846428,-500.0,0.00011506,2]
[352251753,1739017846438,-500.0,0.00011506,2]
[352251754,1739017846446,-1062.89,0.00011506,2]
[352251755,1739017846456,-500.0,0.00011506,2]
[352251756,1739017846466,-500.0,0.00011506,2]
[352251757,1739017846475,-500.0,0.00011506,2]
[352251758,1739017846485,-151.0,0.00011506,2]
[352251759,1739017846495,-285.219417,0.00011506,2]
[352251760,1739017846504,-736.16,0.00011506,2]
[352251761,1739017846514,-742.48,0.00011506,2]
[352251762,1739017846525,-491.717401,0.00011506,2]
[352251763,1739017846534,-491.717401,0.00011506,2]
[352251764,1739017846544,-500.0,0.00011506,2]
[352251765,1739017846554,-1195.43,0.00011506,2]
[352251766,1739017846564,-500.0,0.00011506,2]
[352251767,1739017846573,-752.79,0.00011506,2]
[352251768,1739017846582,-1664.85,0.00011506,2]
[352251769,1739017846592,-500.0,0.00011506,2]
[352251770,1739017846602,-535.84,0.00011506,2]
[352251771,1739017846611,-500.0,0.00011506,2]
[352251772,1739017846621,-742.28,0.00011506,2]
[352251773,1739017846631,-500.0,0.00011506,2]
[352251774,1739017846640,-500.0,0.00011506,2]
[352251775,1739017846650,-500.0,0.00011506,2]
[352251776,1739017846659,-1477.8,0.00011506,2]
[352251777,1739017846668,-789.89,0.00011506,2]
[352251778,1739017846678,-3040.25,0.00011506,2]
[352251779,1739017846688,-993.204699,0.00011506,2]
[352251780,1739017846697,-500.0,0.00011506,2]
[352251781,1739017846707,-993.204699,0.00011506,2]
[352251782,1739017846716,-3881.11,0.00011506,2]
[352251783,1739017846725,-500.0,0.00011506,2]
[352251784,1739017846734,-1742.68,0.00011506,2]
[352251785,1739017846743,-500.0,0.00011506,2]
[352251786,1739017846752,-500.0,0.00011506,2]
[352251787,1739017846761,-500.0,0.00011506,2]
[352251788,1739017846770,-500.0,0.00011506,2]
[352251789,1739017846779,-500.0,0.00011506,2]
[352251790,1739017846787,-17493.96,0.00011506,2]
[352251791,1739017846796,-1286.62,0.00011506,2]
[352251792,1739017846805,-1024.74,0.00011506,2]
[352251793,1739017846814,-500.0,0.00011506,2]
[352251794,1739017846822,-500.0,0.00011506,2]
[352251795,1739017846831,-151.0,0.00011506,2]
[352251796,1739017846840,-500.0,0.00011506,2]
[352251797,1739017846849,-1951.84,0.00011506,2]
[352251798,1739017846858,-5832.43,0.00011506,2]
[352251799,1739017846867,-500.0,0.00011506,2]
[352251800,1739017846876,-500.0,0.00011506,2]
[352251801,1739017846884,-1544.06,0.00011506,2]
[352251802,1739017846895,-48916.37,0.00011506,2]
[352251803,1739017846906,-612.75,0.00011506,2]
[352251804,1739017846915,-151.0,0.00011506,2]